fUST/lending_fUST_20241112
["ID","MTS","AMOUNT","RATE_DAILY","PERIOD"]
[342009143,1731360659212,-598.98,0.00024931,2]
[342009144,1731360659222,-786.79,0.00024931,2]
[342009145,1731360659232,-898.65,0.00024931,2]
[342009146,1731360659242,-1724.2,0.00024931,2]
[342009147,1731360659252,-540.38,0.00024931,2]
[342009148,1731360659263,-1627.88,0.00024931,2]
[342009149,1731360659272,-500.0,0.00024931,2]
[342009150,1731360659281,-699.54,0.00024931,2]
[342009151,1731360659292,-500.0,0.00024931,2]
[342009152,1731360659309,-500.0,0.00024931,2]
[342009153,1731360659319,-1094.01,0.00024931,2]
[342009154,1731360659329,-500.0,0.00024931,2]
[342009155,1731360659342,-17001.68,0.00024931,2]
[342009156,1731360659352,-539.31,0.00024931,2]
[342009157,1731360659362,-1594.23,0.00024931,2]
[342009158,1731360659372,-500.0,0.00024931,2]
[342009159,1731360659381,-3482.34,0.00024931,2]
[342009160,1731360659391,-500.0,0.00024931,2]
[342009161,1731360659401,-763.2,0.00024931,2]
[342009162,1731360659410,-1210.63,0.00024931,2]
[342009163,1731360659420,-701.5,0.00024931,2]
[342009164,1731360659429,-861.42,0.00024931,2]
[342009165,1731360659439,-1641.8,0.00024931,2]
[342009166,1731360659449,-1250.97,0.00024931,2]
[342009167,1731360659459,-1168.75,0.00024931,2]
[342009168,1731360659470,-545.11,0.00024931,2]
[342009169,1731360659480,-500.0,0.00024931,2]
[342009170,1731360659490,-500.0,0.00024931,2]
[342009171,1731360659499,-500.0,0.00024931,2]
[342009172,1731360659509,-659.99,0.00024931,2]
[342009173,1731360659519,-500.0,0.00024931,2]
[342009174,1731360659529,-3723.47,0.00024931,2]
[342009175,1731360659539,-1715.14,0.00024931,2]
[342009176,1731360659548,-701.05,0.00024931,2]
[342009177,1731360659558,-1069.59,0.00024931,2]
[342009178,1731360659567,-4222.88,0.00024931,2]
[342009179,1731360659578,-784.01,0.00024931,2]
[342009180,1731360659592,-2071.63,0.00024931,2]
[342009181,1731360659602,-520.39,0.00024931,2]
[342009182,1731360659611,-500.0,0.00024931,2]
[342009183,1731360659622,-1549.43,0.00024931,2]
[342009184,1731360659631,-4961.39,0.00024931,2]
[342009185,1731360659641,-500.0,0.00024931,2]
[342009186,1731360659651,-500.0,0.00024931,2]
[342009187,1731360659663,-1296.98,0.00024931,2]
[342009188,1731360659674,-500.0,0.00024931,2]
[342009189,1731360659684,-913.88,0.00024931,2]
[342009190,1731360659694,-512.8,0.00024931,2]
[342009191,1731360659703,-500.0,0.00024931,2]
[342009192,1731360659712,-1040.24817633,0.00025,2]
[342009193,1731360659722,-410340.43206277,0.00025,2]
[342009194,1731360659732,-165.48089768,0.00025,2]
[342009195,1731360659742,-1366.30128896,0.00025,2]
[342009196,1731360659751,-203.41345406,0.00025,2]
[342009197,1731360659761,-509.87913667,0.00025,2]
[342009198,1731360659770,-5810.66249964,0.00025,2]
[342009199,1731360659780,-339246.61630465,0.00025,2]
[342009200,1731360659789,-1000.0,0.00025,5]
[342009201,1731360659799,-5147.02679372,0.00025,7]
[342009202,1731360659808,-34079.00212496,0.00025,2]
[342009203,1731360659818,-500.0,0.00025,17]
[342009204,1731360659828,-17995.80339314,0.0002509,2]
[342009205,1731360659839,-500.0,0.00025205,2]
[342009206,1731360659849,-547.53,0.00025205,2]
[342009207,1731360659858,-500.0,0.00025205,2]
[342009208,1731360659871,-500.0,0.00025205,2]
[342009209,1731360659889,-738.39,0.00025205,2]
[342009210,1731360659904,-500.0,0.00025205,2]
[342009211,1731360659916,-565.06443525,0.00025205,2]
[342009212,1731360659930,-274.71325589,0.00025205,2]
[342009213,1731360659944,-500.0,0.00025205,2]
[342009214,1731360659954,-500.0,0.00025205,2]
[342009215,1731360659963,-1866.48,0.00025205,2]
[342009216,1731360659973,-495.00413391,0.00025205,2]
[342009217,1731360659983,-598.98,0.00025205,2]
[342009218,1731360659992,-786.79,0.00025205,2]
[342009219,1731360660002,-898.65,0.00025205,2]
[342009220,1731360660012,-1724.2,0.00025205,2]
[342009221,1731360660022,-540.38,0.00025205,2]
[342009222,1731360660032,-1627.88,0.00025205,2]
[342009223,1731360660043,-560.04384275,0.00025205,2]
[342009224,1731360660054,-699.54,0.00025205,2]
[342009225,1731360660064,-500.0,0.00025205,2]
[342009226,1731360660074,-500.0,0.00025205,2]
[342009227,1731360660085,-1094.01,0.00025205,2]
[342009228,1731360660096,-500.0,0.00025205,2]
[342009229,1731360660105,-17001.68,0.00025205,2]
[342009230,1731360660114,-539.31,0.00025205,2]
[342009231,1731360660124,-1594.23,0.00025205,2]
[342009232,1731360660133,-500.0,0.00025205,2]
[342009233,1731360660143,-3482.34,0.00025205,2]
[342009234,1731360660153,-500.0,0.00025205,2]
[342009235,1731360660162,-763.2,0.00025205,2]
[342009236,1731360660172,-1210.63,0.00025205,2]
[342009237,1731360660181,-701.5,0.00025205,2]
[342009238,1731360660191,-861.42,0.00025205,2]
[342009239,1731360660201,-1641.8,0.00025205,2]
[342009240,1731360660210,-1250.97,0.00025205,2]
[342009241,1731360660220,-1168.75,0.00025205,2]
[342009242,1731360660230,-545.11,0.00025205,2]
[342009243,1731360660240,-500.0,0.00025205,2]
[342009244,1731360660250,-500.0,0.00025205,2]
[342009245,1731360660259,-500.0,0.00025205,2]
[342009246,1731360660269,-659.99,0.00025205,2]
[342009247,1731360660278,-500.0,0.00025205,2]
[342009248,1731360660288,-3723.47,0.00025205,2]
[342009249,1731360660299,-1715.14,0.00025205,2]
[342009250,1731360660308,-701.05,0.00025205,2]
[342009251,1731360660318,-1069.59,0.00025205,2]
[342009252,1731360660328,-4222.88,0.00025205,2]
[342009253,1731360660339,-784.01,0.00025205,2]
[342009254,1731360660349,-2071.63,0.00025205,2]
[342009255,1731360660358,-520.39,0.00025205,2]
[342009256,1731360660369,-500.0,0.00025205,2]
[342009257,1731360660379,-1549.43,0.00025205,2]
[342009258,1731360660389,-4961.39,0.00025205,2]
[342009259,1731360660398,-500.0,0.00025205,2]
[342009260,1731360660408,-500.0,0.00025205,2]
[342009261,1731360660418,-1296.98,0.00025205,2]
[342009262,1731360660427,-500.0,0.00025205,2]
[342009263,1731360660437,-913.88,0.00025205,2]
[342009264,1731360660446,-512.8,0.00025205,2]
[342009265,1731360660455,-500.0,0.00025205,2]
[342009266,1731360660464,-3185.86615466,0.00025209,2]
[342009267,1731360660474,-1123.0,0.0002531,2]
[342009268,1731360660483,-2391.0,0.0002531,2]
[342009269,1731360660492,-4947.0,0.00025332,7]
[342009270,1731360660503,-587.0,0.00025376,2]
[342009271,1731360660513,-500.0,0.00025479,2]
[342009272,1731360660522,-547.53,0.00025479,2]
[342009273,1731360660532,-500.0,0.00025479,2]
[342009274,1731360660542,-500.0,0.00025479,2]
[342009275,1731360660552,-738.39,0.00025479,2]
[342009276,1731360660562,-500.0,0.00025479,2]
[342009277,1731360660572,-500.0,0.00025479,2]
[342009278,1731360660586,-500.0,0.00025479,2]
[342009279,1731360660596,-1866.48,0.00025479,2]
[342009280,1731360660606,-598.98,0.00025479,2]
[342009281,1731360660616,-786.79,0.00025479,2]
[342009282,1731360660627,-898.65,0.00025479,2]
[342009283,1731360660637,-1724.2,0.00025479,2]
[342009284,1731360660646,-540.38,0.00025479,2]
[342009285,1731360660657,-1627.88,0.00025479,2]
[342009286,1731360660667,-699.54,0.00025479,2]
[342009287,1731360660676,-500.0,0.00025479,2]
[342009288,1731360660687,-500.0,0.00025479,2]
[342009289,1731360660697,-1094.01,0.00025479,2]
[342009290,1731360660707,-500.0,0.00025479,2]
[342009291,1731360660717,-17001.68,0.00025479,2]
[342009292,1731360660727,-539.31,0.00025479,2]
[342009293,1731360660737,-1594.23,0.00025479,2]
[342009294,1731360660747,-500.0,0.00025479,2]
[342009295,1731360660757,-3482.34,0.00025479,2]
[342009296,1731360660767,-500.0,0.00025479,2]
[342009297,1731360660777,-763.2,0.00025479,2]
[342009298,1731360660787,-1210.63,0.00025479,2]
[342009299,1731360660797,-701.5,0.00025479,2]
[342009300,1731360660807,-861.42,0.00025479,2]
[342009301,1731360660816,-1641.8,0.00025479,2]
[342009302,1731360660826,-1250.97,0.00025479,2]
[342009303,1731360660838,-1168.75,0.00025479,2]
[342009304,1731360660848,-545.11,0.00025479,2]
[342009305,1731360660858,-500.0,0.00025479,2]
[342009306,1731360660868,-500.0,0.00025479,2]
[342009307,1731360660878,-169.87711178,0.00025479,2]
[342009308,1731360660888,-659.99,0.00025479,2]
[342009309,1731360660898,-500.0,0.00025479,2]
[342009310,1731360660907,-3723.47,0.00025479,2]
[342009311,1731360660918,-1715.14,0.00025479,2]
[342009312,1731360660927,-701.05,0.00025479,2]
[342009313,1731360660938,-1069.59,0.00025479,2]
[342009314,1731360660947,-4222.88,0.00025479,2]
[342009315,1731360660957,-784.01,0.00025479,2]
[342009316,1731360660966,-2071.63,0.00025479,2]
[342009317,1731360660976,-520.39,0.00025479,2]
[342009318,1731360660986,-500.0,0.00025479,2]
[342009319,1731360660996,-1549.43,0.00025479,2]
[342009320,1731360661007,-4961.39,0.00025479,2]
[342009321,1731360661016,-500.0,0.00025479,2]
[342009322,1731360661026,-500.0,0.00025479,2]
[342009323,1731360661037,-1296.98,0.00025479,2]
[342009324,1731360661047,-500.0,0.00025479,2]
[342009325,1731360661056,-913.88,0.00025479,2]
[342009326,1731360661066,-512.8,0.00025479,2]
[342009327,1731360661075,-500.0,0.00025479,2]
[342009328,1731360661086,-1101.8577852,0.00025555,2]
[342009329,1731360661096,-190.0,0.00025614,4]
[342009330,1731360661105,-307.0,0.000257,2]
[342009331,1731360661115,-500.0,0.00025753,2]
[342009332,1731360661124,-547.53,0.00025753,2]
[342009333,1731360661134,-500.0,0.00025753,2]
[342009334,1731360661144,-500.0,0.00025753,2]
[342009335,1731360661154,-738.39,0.00025753,2]
[342009336,1731360661164,-500.0,0.00025753,2]
[342009337,1731360661175,-500.0,0.00025753,2]
[342009338,1731360661185,-500.0,0.00025753,2]
[342009339,1731360661195,-1866.48,0.00025753,2]
[342009340,1731360661205,-598.98,0.00025753,2]
[342009341,1731360661215,-786.79,0.00025753,2]
[342009342,1731360661224,-898.65,0.00025753,2]
[342009343,1731360661234,-1724.2,0.00025753,2]
[342009344,1731360661243,-540.38,0.00025753,2]
[342009345,1731360661252,-1627.88,0.00025753,2]
[342009346,1731360661262,-699.54,0.00025753,2]
[342009347,1731360661271,-500.0,0.00025753,2]
[342009348,1731360661281,-500.0,0.00025753,2]
[342009349,1731360661291,-1094.01,0.00025753,2]
[342009350,1731360661402,-500.0,0.00025753,2]
[342009351,1731360661413,-17001.68,0.00025753,2]
[342009352,1731360661423,-539.31,0.00025753,2]
[342009353,1731360661433,-1594.23,0.00025753,2]
[342009354,1731360661442,-500.0,0.00025753,2]
[342009355,1731360661452,-3482.34,0.00025753,2]
[342009356,1731360661462,-586.07742178,0.00025753,2]
[342009357,1731360661473,-763.2,0.00025753,2]
[342009358,1731360661482,-1210.63,0.00025753,2]
[342009359,1731360661493,-701.5,0.00025753,2]
[342009360,1731360661502,-861.42,0.00025753,2]
[342009361,1731360661512,-1641.8,0.00025753,2]
[342009362,1731360661521,-1250.97,0.00025753,2]
[342009363,1731360661530,-1168.75,0.00025753,2]
[342009364,1731360661544,-545.11,0.00025753,2]
[342009365,1731360661553,-500.0,0.00025753,2]
[342009366,1731360661563,-500.0,0.00025753,2]
[342009367,1731360661572,-659.99,0.00025753,2]
[342009368,1731360661584,-500.0,0.00025753,2]
[342009369,1731360661595,-3723.47,0.00025753,2]
[342009370,1731360661606,-1715.14,0.00025753,2]
[342009371,1731360661619,-701.05,0.00025753,2]
[342009372,1731360661629,-1069.59,0.00025753,2]
[342009373,1731360661638,-4222.88,0.00025753,2]
[342009374,1731360661648,-784.01,0.00025753,2]
[342009375,1731360661658,-2071.63,0.00025753,2]
[342009376,1731360661667,-520.39,0.00025753,2]
[342009377,1731360661677,-500.0,0.00025753,2]
[342009378,1731360661687,-1549.43,0.00025753,2]
[342009379,1731360661697,-4961.39,0.00025753,2]
[342009380,1731360661706,-500.0,0.00025753,2]
[342009381,1731360661716,-595.94087682,0.00025753,2]
[342009382,1731360661726,-1296.98,0.00025753,2]
[342009383,1731360661739,-500.0,0.00025753,2]
[342009384,1731360661749,-913.88,0.00025753,2]
[342009385,1731360661759,-512.8,0.00025753,2]
[342009386,1731360661769,-500.0,0.00025753,2]
[342009387,1731360661779,-343.0,0.00025775,2]
[342009388,1731360661789,-1500.0,0.00025847,2]
[342009389,1731360661798,-512.4231855,0.00025847,2]
[342009390,1731360661808,-1500.0,0.00025847,2]
[342009391,1731360661816,-1500.0,0.00025847,2]
[342009392,1731360661826,-1500.0,0.00025847,2]
[342009393,1731360661837,-502.38039894,0.00025847,2]
[342009394,1731360661847,-1500.0,0.00025847,2]
[342009395,1731360661857,-1500.0,0.00025847,2]
[342009396,1731360661866,-1500.0,0.00025847,2]
[342009397,1731360661876,-1500.0,0.00025847,2]
[342009398,1731360661886,-1005.35537002,0.00025847,2]
[342009399,1731360661897,-1500.0,0.00025847,2]
[342009400,1731360661907,-3674.3,0.000259,14]
[342009401,1731360661918,-1831.75,0.000259,14]
[342009402,1731360661928,-25614.0,0.00026,14]
[342009403,1731360661939,-7760.22,0.00026,14]
[342009404,1731360661949,-500.0,0.00026,20]
[342009405,1731360661958,-500.0,0.00026027,2]
[342009406,1731360661969,-547.53,0.00026027,2]
[342009407,1731360661978,-500.0,0.00026027,2]
[342009408,1731360661988,-500.0,0.00026027,2]
[342009409,1731360662008,-738.39,0.00026027,2]
[342009410,1731360662020,-500.0,0.00026027,2]
[342009411,1731360662031,-500.0,0.00026027,2]
[342009412,1731360662041,-617.15,0.00026027,2]
[342009413,1731360662052,-1866.48,0.00026027,2]
[342009414,1731360662062,-786.79,0.00026027,2]
[342009415,1731360662072,-898.65,0.00026027,2]
[342009416,1731360662083,-1724.2,0.00026027,2]
[342009417,1731360662096,-540.38,0.00026027,2]
[342009418,1731360662106,-1627.88,0.00026027,2]
[342009419,1731360662116,-699.54,0.00026027,2]
[342009420,1731360662127,-500.0,0.00026027,2]
[342009421,1731360662137,-500.0,0.00026027,2]
[342009422,1731360662148,-1094.01,0.00026027,2]
[342009423,1731360662158,-500.0,0.00026027,2]
[342009424,1731360662168,-17001.68,0.00026027,2]
[342009425,1731360662178,-539.31,0.00026027,2]
[342009426,1731360662189,-1594.23,0.00026027,2]
[342009427,1731360662199,-500.0,0.00026027,2]
[342009428,1731360662210,-3482.34,0.00026027,2]
[342009429,1731360662219,-763.2,0.00026027,2]
[342009430,1731360662229,-1210.63,0.00026027,2]
[342009431,1731360662239,-701.5,0.00026027,2]
[342009432,1731360662249,-861.42,0.00026027,2]
[342009433,1731360662259,-1641.8,0.00026027,2]
[342009434,1731360662269,-1250.97,0.00026027,2]
[342009435,1731360662278,-1168.75,0.00026027,2]
[342009436,1731360662289,-545.11,0.00026027,2]
[342009437,1731360662299,-500.0,0.00026027,2]
[342009438,1731360662310,-500.0,0.00026027,2]
[342009439,1731360662320,-659.99,0.00026027,2]
[342009440,1731360662330,-500.0,0.00026027,2]
[342009441,1731360662343,-3723.47,0.00026027,2]
[342009442,1731360662355,-1715.14,0.00026027,2]
[342009443,1731360662366,-701.05,0.00026027,2]
[342009444,1731360662376,-1069.59,0.00026027,2]
[342009445,1731360662386,-4222.88,0.00026027,2]
[342009446,1731360662396,-784.01,0.00026027,2]
[342009447,1731360662406,-2071.63,0.00026027,2]
[342009448,1731360662415,-520.39,0.00026027,2]
[342009449,1731360662425,-500.0,0.00026027,2]
[342009450,1731360662435,-1549.43,0.00026027,2]
[342009451,1731360662445,-4961.39,0.00026027,2]
[342009452,1731360662456,-500.0,0.00026027,2]
[342009453,1731360662466,-1296.98,0.00026027,2]
[342009454,1731360662477,-500.0,0.00026027,2]
[342009455,1731360662487,-913.88,0.00026027,2]
[342009456,1731360662498,-512.8,0.00026027,2]
[342009457,1731360662508,-500.0,0.00026027,2]
[342009458,1731360662517,-190.0,0.00026126,4]
[342009459,1731360662527,-250.0,0.00026179,2]
[342009460,1731360662536,-500.0,0.00026301,2]
[342009461,1731360662546,-547.53,0.00026301,2]
[342009462,1731360662556,-500.0,0.00026301,2]
[342009463,1731360662566,-500.0,0.00026301,2]
[342009464,1731360662576,-738.39,0.00026301,2]
[342009465,1731360662590,-512.92533552,0.00026301,2]
[342009466,1731360662600,-500.0,0.00026301,2]
[342009467,1731360662614,-1866.48,0.00026301,2]
[342009468,1731360662625,-786.79,0.00026301,2]
[342009469,1731360662634,-898.65,0.00026301,2]
[342009470,1731360662643,-1724.2,0.00026301,2]
[342009471,1731360662653,-540.38,0.00026301,2]
[342009472,1731360662663,-1627.88,0.00026301,2]
[342009473,1731360662673,-699.54,0.00026301,2]
[342009474,1731360662682,-500.0,0.00026301,2]
[342009475,1731360662692,-500.0,0.00026301,2]
[342009476,1731360662703,-1094.01,0.00026301,2]
[342009477,1731360662712,-348.39313473,0.00026301,2]
[342009478,1731360662722,-17001.68,0.00026301,2]
[342009479,1731360662732,-539.31,0.00026301,2]
[342009480,1731360662741,-1594.23,0.00026301,2]
[342009481,1731360662751,-500.0,0.00026301,2]
[342009482,1731360662761,-3482.34,0.00026301,2]
[342009483,1731360662771,-763.2,0.00026301,2]
[342009484,1731360662780,-1210.63,0.00026301,2]
[342009485,1731360662790,-701.5,0.00026301,2]
[342009486,1731360662800,-861.42,0.00026301,2]
[342009487,1731360662809,-1641.8,0.00026301,2]
[342009488,1731360662819,-1250.97,0.00026301,2]
[342009489,1731360662828,-1168.75,0.00026301,2]
[342009490,1731360662840,-545.11,0.00026301,2]
[342009491,1731360662850,-500.0,0.00026301,2]
[342009492,1731360662860,-500.0,0.00026301,2]
[342009493,1731360662870,-659.99,0.00026301,2]
[342009494,1731360662879,-500.0,0.00026301,2]
[342009495,1731360662889,-3723.47,0.00026301,2]
[342009496,1731360662899,-1715.14,0.00026301,2]
[342009497,1731360662908,-701.05,0.00026301,2]
[342009498,1731360662918,-1069.59,0.00026301,2]
[342009499,1731360662928,-4222.88,0.00026301,2]
[342009500,1731360662938,-784.01,0.00026301,2]
[342009501,1731360662948,-2071.63,0.00026301,2]
[342009502,1731360662958,-520.39,0.00026301,2]
[342009503,1731360662968,-500.0,0.00026301,2]
[342009504,1731360662978,-1549.43,0.00026301,2]
[342009505,1731360662989,-4961.39,0.00026301,2]
[342009506,1731360662999,-500.0,0.00026301,2]
[342009507,1731360663009,-1296.98,0.00026301,2]
[342009508,1731360663020,-500.0,0.00026301,2]
[342009509,1731360663030,-913.88,0.00026301,2]
[342009510,1731360663042,-512.8,0.00026301,2]
[342009511,1731360663052,-530.94710082,0.00026301,2]
[342009512,1731360663063,-660.0,0.00026384,2]
[342009513,1731360663074,-500.0,0.00026575,2]
[342009514,1731360663084,-547.53,0.00026575,2]
[342009515,1731360663099,-500.0,0.00026575,2]
[342009516,1731360663110,-500.0,0.00026575,2]
[342009517,1731360663120,-738.39,0.00026575,2]
[342009518,1731360663130,-500.0,0.00026575,2]
[342009519,1731360663140,-1866.48,0.00026575,2]
[342009520,1731360663150,-786.79,0.00026575,2]
[342009521,1731360663160,-898.65,0.00026575,2]
[342009522,1731360663170,-1724.2,0.00026575,2]
[342009523,1731360663180,-540.38,0.00026575,2]
[342009524,1731360663190,-1627.88,0.00026575,2]
[342009525,1731360663200,-699.54,0.00026575,2]
[342009526,1731360663210,-500.0,0.00026575,2]
[342009527,1731360663220,-500.0,0.00026575,2]
[342009528,1731360663229,-1094.01,0.00026575,2]
[342009529,1731360663239,-17001.68,0.00026575,2]
[342009530,1731360663249,-539.31,0.00026575,2]
[342009531,1731360663258,-1594.23,0.00026575,2]
[342009532,1731360663268,-500.0,0.00026575,2]
[342009533,1731360663279,-3482.34,0.00026575,2]
[342009534,1731360663289,-763.2,0.00026575,2]
[342009535,1731360663299,-1210.63,0.00026575,2]
[342009536,1731360663310,-701.5,0.00026575,2]
[342009537,1731360663320,-861.42,0.00026575,2]
[342009538,1731360663331,-1641.8,0.00026575,2]
[342009539,1731360663346,-1250.97,0.00026575,2]
[342009540,1731360663356,-1168.75,0.00026575,2]
[342009541,1731360663366,-545.11,0.00026575,2]
[342009542,1731360663377,-500.0,0.00026575,2]
[342009543,1731360663386,-500.0,0.00026575,2]
[342009544,1731360663396,-659.99,0.00026575,2]
[342009545,1731360663406,-500.0,0.00026575,2]
[342009546,1731360663416,-3723.47,0.00026575,2]
[342009547,1731360663425,-1715.14,0.00026575,2]
[342009548,1731360663435,-701.05,0.00026575,2]
[342009549,1731360663445,-1069.59,0.00026575,2]
[342009550,1731360663455,-4222.88,0.00026575,2]
[342009551,1731360663465,-784.01,0.00026575,2]
[342009552,1731360663475,-2071.63,0.00026575,2]
[342009553,1731360663484,-520.39,0.00026575,2]
[342009554,1731360663493,-500.0,0.00026575,2]
[342009555,1731360663503,-1549.43,0.00026575,2]
[342009556,1731360663512,-4961.39,0.00026575,2]
[342009557,1731360663522,-500.0,0.00026575,2]
[342009558,1731360663532,-1296.98,0.00026575,2]
[342009559,1731360663541,-580.87585881,0.00026575,2]
[342009560,1731360663551,-913.88,0.00026575,2]
[342009561,1731360663560,-512.8,0.00026575,2]
[342009562,1731360663570,-1101.8577852,0.00026635,2]
[342009563,1731360663581,-190.0,0.00026638,5]
[342009564,1731360663594,-3185.86615466,0.00026645,2]
[342009565,1731360663604,-300.0,0.000267,2]
[342009566,1731360663615,-160.0,0.00026724,3]
[342009567,1731360663625,-350.0,0.00026727,2]
[342009568,1731360663750,-520.0,0.00026773,2]
[342009569,1731360663759,-500.0,0.00026849,2]
[342009570,1731360663770,-547.53,0.00026849,2]
[342009571,1731360663779,-444.9624313,0.00026849,2]
[342009572,1731360663790,-260.88369822,0.00026849,2]
[342009573,1731360663800,-738.39,0.00026849,2]
[342009574,1731360663810,-186.35538611,0.00026849,2]
[342009575,1731360663820,-1866.48,0.00026849,2]
[342009576,1731360663830,-786.79,0.00026849,2]
[342009577,1731360663841,-898.65,0.00026849,2]
[342009578,1731360663850,-1724.2,0.00026849,2]
[342009579,1731360663860,-540.38,0.00026849,2]
[342009580,1731360663870,-1102.37,0.00026849,2]
[342009581,1731360663880,-1627.88,0.00026849,2]
[342009582,1731360663890,-699.54,0.00026849,2]
[342009583,1731360663899,-500.0,0.00026849,2]
[342009584,1731360663909,-500.0,0.00026849,2]
[342009585,1731360663918,-1094.01,0.00026849,2]
[342009586,1731360663927,-17001.68,0.00026849,2]
[342009587,1731360663937,-539.31,0.00026849,2]
[342009588,1731360663946,-1594.23,0.00026849,2]
[342009589,1731360663956,-500.0,0.00026849,2]
[342009590,1731360663966,-3322.71422112,0.00026849,2]
[342009591,1731360664113,-159.62577888,0.00026849,2]
[342009592,1731360664123,-763.2,0.00026849,2]
[342009593,1731360664134,-1210.63,0.00026849,2]
[342009594,1731360664144,-701.5,0.00026849,2]
[342009595,1731360664154,-861.42,0.00026849,2]
[342009596,1731360664165,-1641.8,0.00026849,2]
[342009597,1731360664175,-1250.97,0.00026849,2]
[342009598,1731360664186,-1168.75,0.00026849,2]
[342009599,1731360664197,-545.11,0.00026849,2]
[342009600,1731360664207,-500.0,0.00026849,2]
[342009601,1731360664217,-500.0,0.00026849,2]
[342009602,1731360664227,-659.99,0.00026849,2]
[342009603,1731360664237,-564.04554035,0.00026849,2]
[342009604,1731360664248,-3723.47,0.00026849,2]
[342009605,1731360664258,-1715.14,0.00026849,2]
[342009606,1731360664269,-701.05,0.00026849,2]
[342009607,1731360664279,-1069.59,0.00026849,2]
[342009608,1731360664289,-2285.90868078,0.00026849,2]
[342009609,1731360664330,-1936.97131922,0.00026849,2]
[342009610,1731360664343,-784.01,0.00026849,2]
[342009611,1731360664354,-2071.63,0.00026849,2]
[342009612,1731360664364,-520.39,0.00026849,2]
[342009613,1731360664374,-500.0,0.00026849,2]
[342009614,1731360664384,-1549.43,0.00026849,2]
[342009615,1731360664394,-4961.39,0.00026849,2]
[342009616,1731360664404,-500.0,0.00026849,2]
[342009617,1731360664414,-1296.98,0.00026849,2]
[342009618,1731360664423,-913.88,0.00026849,2]
[342009619,1731360664433,-512.8,0.00026849,2]
[342009620,1731360664442,-5105.55231398,0.00026905,3]
[342009621,1731360664452,-2544.0,0.00026905,3]
[342009622,1731360664462,-2544.0,0.00026905,3]
[342009623,1731360664472,-515.43163804,0.00026905,3]
[342009624,1731360664620,-500.0,0.00021917,2]
[342009625,1731360664631,-834.46,0.00022191,2]
[342009626,1731360664641,-834.46,0.00022465,2]
[342009627,1731360664650,-834.46,0.00022739,2]
[342009628,1731360664662,-834.46,0.00023013,2]
[342009629,1731360664671,-282.0672035,0.00023287,2]
[342009630,1731360664683,-552.3927965,0.00023287,2]
[342009631,1731360664692,-834.46,0.00023561,2]
[342009632,1731360664701,-834.46,0.00023835,2]
[342009633,1731360664712,-834.46,0.00024109,2]
[342009634,1731360664721,-63.9581725,0.00026905,3]
[342009635,1731360664732,-619.71305479,0.00026905,3]
[342009636,1731360664743,-261.546,0.00026905,3]
[342009637,1731360664834,-166.666666,0.00021918,2]
[342009638,1731360664846,-166.666666,0.00022431,2]
[342009639,1731360664856,-166.666666,0.00022944,2]
[342009640,1731360664866,-166.666666,0.00023456,2]
[342009641,1731360664876,-166.666666,0.00023969,2]
[342009642,1731360664886,-834.46,0.00024383,2]